[Event "ESP-ch U1700 2024"]
[Site "Albacete"]
[Date "2024.08.27"]
[Round "1.9"]
[White "Lancharro Delgado, Miguel"]
[Black "Alarcon Alarcon, Elvis Eduardo"]
[Result "1-0"]
[ECO "C55"]
[WhiteElo "1566"]
[BlackElo "1685"]
[Annotator "NA RC COMBH"]
[PlyCount "117"]
[EventDate "2024.08.27"]
[EventType "swiss"]
[EventCountry "ESP"]
[SourceTitle "playchess.com"]
[Source "ChessBase"]
[SourceQuality "1"]
[TimeControl "5400+30"]

1. e4 {[%emt 0:00:02]} e5 {[%emt 0:00:03]} 2. Nf3 {[%emt 0:00:03]} Nc6 {[%emt 0:00:02]} 3. Bc4 {[%emt 0:00:05]} Nf6 {[%emt 0:00:06]} 4. d4 {[%emt 0:00:11]} Nxe4 {[%emt 0:04:14]} 5. dxe5 {[%emt 0:01:06]} Qe7 {[%emt 0:00:35]} 6. O-O {[%emt 0:03:39]} h6 {[%emt 0:00:27]} 7. Re1 {[%emt 0:01:20]} Ng5 {[%emt 0:00:24]} 8. Bf4 {[%emt 0:01:58]} Ne6 {[%emt 0:00:24]} 9. Bg3 {[%emt 0:00:37]} Qc5 {[%emt 0:01:19]} 10. Qd5 {[%emt 0:01:54]} Qb6 {[%emt 0:01:34]} 11. Qb5 {[%emt 0:03:09]} Bc5 {[%emt 0:02:52]} 12. Nbd2 {[%emt 0:13:42]} Nb4 {[%emt 0:04:26]} 13. Rec1 {[%emt 0:02:42]} O-O {[%emt 0:04:22]} 14. c3 {[%emt 0:04:17]} Nc6 {[%emt 0:00:41]} 15. Ne4 {[%emt 0:02:38]} Be7 {[%emt 0:00:08]} 16. b4 {[%emt 0:07:19]} Qxb5 {[%emt 0:02:04]} 17. Bxb5 {[%emt 0:02:44]} a6 {[%emt 0:00:02]} 18. Bd3 {[%emt 0:01:01]} b6 {[%emt 0:00:55]} 19. a4 {[%emt 0:01:53]} a5 {[%emt 0:00:20]} 20. b5 {[%emt 0:00:25]} Na7 {[%emt 0:00:01]} 21. Nd4 {[%emt 0:05:28]} Bb7 {[%emt 0:00:50]} 22. Rc2 {[%emt 0:00:45]} Rfd8 {[%emt 0:00:24]} 23. Nf5 {[%emt 0:01:07]} Bf8 {[%emt 0:00:02]} 24. Rd1 {[%emt 0:03:57]} Nc5 {[%emt 0:09:49]} 25. Nxc5 {[%emt 0:01:56]} Bxc5 {[%emt 0:00:11]} 26. Bh4 {[%emt 0:00:36]} Re8 {[%emt 0:00:49]} 27. Re2 {[%emt 0:01:03]} Nc8 {[%emt 0:02:44]} 28. Bc4 {[%emt 0:00:39]} d6 {[%emt 0:00:59]} 29. e6 {[%emt 0:09:54]} fxe6 {[%emt 0:00:27]} 30. Rxe6 {[%emt 0:00:22]} Rxe6 {[%emt 0:01:01]} 31. Bxe6+ {[%emt 0:01:54]} Kh7 {[%emt 0:00:40]} 32. Bd8 {[%emt 0:02:57]} g6 {[%emt 0:01:30]} 33. Ne3 {[%emt 0:10:40]} c6 {[%emt 0:01:04]} 34. c4 {[%emt 0:00:29]} Na7 {[%emt 0:00:58]} 35. Bc7 {[%emt 0:00:43]} cxb5 {[%emt 0:01:38]} 36. cxb5 {[%emt 0:00:02]} Re8 {[%emt 0:00:43]} 37. Bd5 {[%emt 0:03:20]} Bxd5 {[%emt 0:12:12]} 38. Nxd5 {[%emt 0:01:15]} Re2 {[%emt 0:01:51]} 39. Bxb6 {[%emt 0:00:27]} Bxb6 {[%emt 0:01:49]} 40. Nxb6 {[%emt 0:00:03]} Kg7 {[%emt 0:00:22]} 41. Kf1 {[%emt 0:00:20]} Rb2 {[%emt 0:02:20]} 42. Rxd6 {[%emt 0:01:54]} Nxb5 43. axb5 {[%emt 0:00:03]} Rxb5 {[%emt 0:00:33]} 44. Nc4 {[%emt 0:00:26]} a4 {[%emt 0:00:30]} 45. Rd2 {[%emt 0:01:16]} Rb4 {[%emt 0:00:25]} 46. Na3 {[%emt 0:00:20]} Kf6 {[%emt 0:00:29]} 47. Ke2 {[%emt 0:00:01]} h5 {[%emt 0:00:23]} 48. Rc2 {[%emt 0:00:32]} Rb3 {[%emt 0:01:16]} 49. Ra2 {[%emt 0:00:50]} h4 {[%emt 0:01:26]} 50. Nc2 {[%emt 0:00:18]} Rb1 {[%emt 0:00:21]} 51. Rxa4 {[%emt 0:00:48]} g5 {[%emt 0:00:13]} 52. Ra1 {[%emt 0:00:13]} Rb2 {[%emt 0:00:03]} 53. Kd2 {[%emt 0:00:23]} Kf5 {[%emt 0:00:13]} 54. Ra5+ {[%emt 0:00:02]} Kg4 {[%emt 0:00:26]} 55. Kc3 {[%emt 0:00:47]} Rb1 {[%emt 0:00:20]} 56. Ne3+ {[%emt 0:00:21]} Kf4 {[%emt 0:00:52]} 57. Rf5+ {[%emt 0:00:17]} Ke4 {[%emt 0:00:06]} 58. Rxg5 {[%emt 0:00:13]} Rc1+ {[%emt 0:00:19]} 59. Kd2 {[%emt 0:00:12]} 1-0

[Event "ESP-ch U1700 2024"]
[Site "Albacete"]
[Date "2024.08.27"]
[Round "2.1"]
[White "Marinas Gutierrez, Carlos"]
[Black "Garcia-Munoz Arias, Diego"]
[Result "0-1"]
[ECO "C58"]
[WhiteElo "1631"]
[BlackElo "1696"]
[Annotator "NA RC COMBH"]
[PlyCount "40"]
[EventDate "2024.08.27"]
[EventType "swiss"]
[EventCountry "ESP"]
[SourceTitle "playchess.com"]
[Source "ChessBase"]
[SourceQuality "1"]
[TimeControl "5400+30"]

1. e4 e5 2. Nf3 {[%emt 0:00:03]} Nc6 {[%emt 0:00:12]} 3. Bc4 Nf6 4. Ng5 d5 5. exd5 {[%emt 0:01:34]} Na5 {[%emt 0:00:43]} 6. Bb5+ {[%emt 0:00:30]} c6 {[%emt 0:00:07]} 7. dxc6 {[%emt 0:00:19]} bxc6 {[%emt 0:00:04]} 8. Ba4 {[%emt 0:08:35]} h6 {[%emt 0:00:07]} 9. Nf3 {[%emt 0:00:28]} e4 {[%emt 0:00:06]} 10. Ng1 {[%emt 0:09:59]} Bc5 {[%emt 0:02:02]} 11. Nc3 {[%emt 0:01:45]} Qb6 {[%emt 0:01:38]} 12. Qe2 {[%emt 0:01:46]} Ba6 {[%emt 0:00:23]} 13. d3 {[%emt 0:00:56]} O-O {[%emt 0:00:48]} 14. Kf1 {[%emt 0:21:43]} Rfe8 {[%emt 0:08:09]} 15. Qd1 {[%emt 0:07:45]} exd3 {[%emt 0:01:34]} 16. cxd3 {[%emt 0:02:24]} Bxf2 {[%emt 0:01:37]} 17. Nf3 {[%emt 0:02:20]} Ng4 {[%emt 0:00:56]} 18. Bd2 {[%emt 0:14:42]} Bxd3+ {[%emt 0:01:25]} 19. Ne2 {[%emt 0:01:09]} Bg3 {[%emt 0:01:22]} 20. Nfd4 {[%emt 0:00:59]} Qxd4 {[%emt 0:00:20]} 0-1

[Event "ESP-ch U1700 2024"]
[Site "Albacete"]
[Date "2024.08.27"]
[Round "2.2"]
[White "Carrilero Otalora, Vanesa"]
[Black "Gonzalez Caceres, Lauren"]
[Result "1/2-1/2"]
[ECO "D05"]
[WhiteElo "1692"]
[BlackElo "1617"]
[Annotator "NA RC COMBH"]
[PlyCount "92"]
[EventDate "2024.08.27"]
[EventType "swiss"]
[EventCountry "ESP"]
[SourceTitle "playchess.com"]
[Source "ChessBase"]
[SourceQuality "1"]
[TimeControl "5400+30"]

1. d4 {[%emt 0:00:03]} d5 {[%emt 0:00:07]} 2. Nf3 {[%emt 0:01:54]} Nf6 {[%emt 0:00:29]} 3. e3 {[%emt 0:01:39]} e6 {[%emt 0:01:44]} 4. Bd3 {[%emt 0:01:49]} Bb4+ {[%emt 0:03:09]} 5. c3 {[%emt 0:01:18]} Be7 {[%emt 0:00:30]} 6. O-O {[%emt 0:00:31]} O-O {[%emt 0:00:51]} 7. Nbd2 {[%emt 0:02:47]} Nbd7 {[%emt 0:03:04]} 8. b3 {[%emt 0:00:42]} b6 {[%emt 0:02:28]} 9. Bb2 {[%emt 0:01:36]} Bb7 {[%emt 0:00:21]} 10. c4 {[%emt 0:03:17]} c5 {[%emt 0:06:46]} 11. cxd5 {[%emt 0:13:23]} Bxd5 {[%emt 0:07:40]} 12. Rc1 {[%emt 0:06:56]} Rc8 {[%emt 0:08:53]} 13. Qe2 {[%emt 0:03:07]} Re8 {[%emt 0:03:05]} 14. Bb5 {[%emt 0:05:33]} Bc6 {[%emt 0:00:35]} 15. Bxc6 {[%emt 0:01:25]} Rxc6 {[%emt 0:00:15]} 16. dxc5 {[%emt 0:04:15]} Rxc5 {[%emt 0:02:24]} 17. Rxc5 {[%emt 0:07:29]} Bxc5 {[%emt 0:01:35]} 18. Nc4 {[%emt 0:01:45]} Qe7 {[%emt 0:04:48]} 19. Nfe5 {[%emt 0:05:20]} Nxe5 {[%emt 0:02:19]} 20. Bxe5 {[%emt 0:00:54]} Rd8 {[%emt 0:03:37]} 21. h3 {[%emt 0:03:57]} Nd5 {[%emt 0:09:13]} 22. e4 {[%emt 0:10:14]} Nb4 {[%emt 0:02:15]} 23. a3 {[%emt 0:02:21]} Nc6 {[%emt 0:00:57]} 24. b4 {[%emt 0:02:33]} Bd4 {[%emt 0:04:51]} 25. Bg3 {[%emt 0:05:46]} e5 {[%emt 0:06:12]} 26. Nd2 {[%emt 0:02:42]} Qe6 {[%emt 0:05:21]} 27. Nf3 {[%emt 0:01:09]} f6 {[%emt 0:04:53]} 28. Rc1 {[%emt 0:00:53]} Rc8 {[%emt 0:03:09]} 29. Qd2 {[%emt 0:04:33]} Rd8 {[%emt 0:04:59]} 30. Qc2 {[%emt 0:01:00]} Ne7 {[%emt 0:02:30]} 31. b5 {[%emt 0:01:08]} Rc8 {[%emt 0:01:10]} 32. Qb1 {[%emt 0:00:13]} Rxc1+ {[%emt 0:00:05]} 33. Qxc1 {[%emt 0:00:05]} Bc5 {[%emt 0:00:03]} 34. a4 {[%emt 0:01:44]} Qb3 {[%emt 0:01:13]} 35. Qa1 {[%emt 0:00:16]} Qa3 {[%emt 0:00:37]} 36. Qd1 {[%emt 0:00:29]} Kf7 {[%emt 0:00:38]} 37. Nh4 {[%emt 0:00:49]} g6 {[%emt 0:00:46]} 38. Nf3 {[%emt 0:00:46]} Qb4 {[%emt 0:00:31]} 39. Qc2 {[%emt 0:00:44]} Nc8 {[%emt 0:01:24]} 40. Qa2+ {[%emt 0:00:49]} Kg7 {[%emt 0:01:14]} 41. Qc2 {[%emt 0:00:49]} Nd6 {[%emt 0:00:29]} 42. Nd2 {[%emt 0:00:19]} h6 {[%emt 0:02:29]} 43. Kh2 {[%emt 0:01:02]} Nf7 {[%emt 0:01:22]} 44. Qa2 {[%emt 0:01:08]} Qd4 {[%emt 0:00:30]} 45. Qc2 {[%emt 0:00:44]} Qb4 46. Kg1 Nd6 1/2-1/2

[Event "ESP-ch U1700 2024"]
[Site "Albacete"]
[Date "2024.08.27"]
[Round "2.3"]
[White "Acebal Fernandez, Jose Maria"]
[Black "Grande Gonzalez, Julen"]
[Result "1/2-1/2"]
[ECO "D35"]
[WhiteElo "1624"]
[BlackElo "1692"]
[Annotator "NA RC COMBH"]
[PlyCount "73"]
[EventDate "2024.08.27"]
[EventType "swiss"]
[EventCountry "ESP"]
[SourceTitle "playchess.com"]
[Source "ChessBase"]
[SourceQuality "1"]
[TimeControl "5400+30"]

1. d4 {[%emt 0:00:03]} d5 {[%emt 0:00:05]} 2. c4 {[%emt 0:00:16]} e6 {[%emt 0:00:13]} 3. Nc3 {[%emt 0:00:07]} Nf6 {[%emt 0:00:06]} 4. cxd5 {[%emt 0:00:19]} exd5 {[%emt 0:00:05]} 5. Bg5 {[%emt 0:00:58]} c6 {[%emt 0:00:09]} 6. e3 {[%emt 0:01:37]} Be7 {[%emt 0:01:24]} 7. Bd3 {[%emt 0:00:53]} O-O {[%emt 0:01:08]} 8. Qc2 {[%emt 0:02:47]} Nbd7 {[%emt 0:06:25]} 9. Nf3 {[%emt 0:01:56]} Re8 {[%emt 0:05:44]} 10. O-O {[%emt 0:04:25]} Nf8 {[%emt 0:01:35]} 11. Rab1 {[%emt 0:01:11]} Ng6 {[%emt 0:15:03]} 12. b4 {[%emt 0:04:23]} a6 {[%emt 0:05:40]} 13. a4 {[%emt 0:02:22]} Ne4 {[%emt 0:13:17]} 14. Bxe7 {[%emt 0:03:31]} Qxe7 {[%emt 0:01:24]} 15. b5 {[%emt 0:01:57]} axb5 {[%emt 0:04:28]} 16. axb5 {[%emt 0:00:50]} Ra3 {[%emt 0:01:15]} 17. Bxe4 {[%emt 0:01:02]} dxe4 {[%emt 0:02:49]} 18. Nd2 {[%emt 0:00:20]} f5 {[%emt 0:01:28]} 19. bxc6 {[%emt 0:01:27]} bxc6 {[%emt 0:00:08]} 20. Na4 {[%emt 0:00:25]} Qe6 {[%emt 0:08:56]} 21. Rfc1 {[%emt 0:03:25]} Ba6 {[%emt 0:04:25]} 22. Nc5 {[%emt 0:01:40]} Bd3 {[%emt 0:03:36]} 23. Nxe6 {[%emt 0:02:41]} Bxc2 {[%emt 0:00:05]} 24. Nxg7 {[%emt 0:01:29]} Bxb1 {[%emt 0:03:06]} 25. Nxe8 {[%emt 0:00:24]} Bd3 {[%emt 0:00:44]} 26. h3 {[%emt 0:00:58]} Kf7 {[%emt 0:04:01]} 27. Nd6+ {[%emt 0:00:28]} Ke6 {[%emt 0:00:04]} 28. Rxc6 {[%emt 0:01:16]} Ra1+ {[%emt 0:01:04]} 29. Kh2 {[%emt 0:00:18]} Ne7 {[%emt 0:00:48]} 30. Rb6 {[%emt 0:00:53]} Nd5 {[%emt 0:00:18]} 31. Rc6 {[%emt 0:00:54]} Kd7 {[%emt 0:00:10]} 32. Rc8 {[%emt 0:02:05]} Kxd6 {[%emt 0:00:27]} 33. Rd8+ {[%emt 0:00:13]} Ke6 {[%emt 0:00:19]} 34. Nb3 {[%emt 0:00:32]} Ra2 {[%emt 0:06:47]} 35. Nc5+ {[%emt 0:00:24]} Kf6 {[%emt 0:00:18]} 36. Rxd5 {[%emt 0:00:20]} Rxf2 {[%emt 0:00:08]} 37. Rd6+ {[%emt 0:00:39]} 1/2-1/2

[Event "ESP-ch U1700 2024"]
[Site "Albacete"]
[Date "2024.08.27"]
[Round "2.4"]
[White "Anguita Ruiz, Miguel"]
[Black "Garcia Sahuquillo, Marcos Antonio"]
[Result "0-1"]
[ECO "C02"]
[WhiteElo "1617"]
[BlackElo "1690"]
[Annotator "NA RC COMBH"]
[PlyCount "74"]
[EventDate "2024.08.27"]
[EventType "swiss"]
[EventCountry "ESP"]
[SourceTitle "playchess.com"]
[Source "ChessBase"]
[SourceQuality "1"]
[TimeControl "5400+30"]

1. e4 {[%emt 0:00:03]} e6 {[%emt 0:00:10]} 2. d4 {[%emt 0:00:08]} d5 {[%emt 0:00:05]} 3. e5 {[%emt 0:00:16]} c5 {[%emt 0:00:09]} 4. c3 {[%emt 0:00:08]} Nc6 {[%emt 0:00:07]} 5. Nf3 {[%emt 0:00:11]} Nh6 {[%emt 0:00:25]} 6. Bxh6 {[%emt 0:00:55]} gxh6 {[%emt 0:00:05]} 7. Be2 {[%emt 0:01:08]} Qe7 {[%emt 0:01:09]} 8. O-O {[%emt 0:01:34]} Bd7 {[%emt 0:00:21]} 9. Na3 {[%emt 0:01:47]} c4 {[%emt 0:00:28]} 10. Nc2 {[%emt 0:04:33]} O-O-O {[%emt 0:00:57]} 11. b4 {[%emt 0:00:43]} b5 {[%emt 0:01:56]} 12. a4 {[%emt 0:04:42]} a6 {[%emt 0:03:59]} 13. axb5 {[%emt 0:01:38]} axb5 {[%emt 0:00:02]} 14. Qb1 {[%emt 0:05:19]} Kc7 {[%emt 0:00:48]} 15. Qa2 {[%emt 0:00:57]} Bg7 {[%emt 0:01:35]} 16. Qa6 {[%emt 0:01:46]} Rb8 {[%emt 0:00:26]} 17. Qa2 {[%emt 0:05:05]} f6 {[%emt 0:02:14]} 18. exf6 {[%emt 0:01:10]} Bxf6 {[%emt 0:00:13]} 19. Rfe1 {[%emt 0:03:22]} Rb7 {[%emt 0:03:42]} 20. Bf1 {[%emt 0:00:43]} Rg8 {[%emt 0:00:56]} 21. Ne3 {[%emt 0:00:24]} Qg7 {[%emt 0:00:38]} 22. g3 {[%emt 0:00:31]} h5 {[%emt 0:00:45]} 23. h4 {[%emt 0:01:54]} Qf7 {[%emt 0:03:54]} 24. Bg2 {[%emt 0:06:00]} Ra7 {[%emt 0:01:49]} 25. Qd2 {[%emt 0:01:53]} Rga8 {[%emt 0:00:19]} 26. Nc2 {[%emt 0:01:40]} Ra2 {[%emt 0:03:38]} 27. Rxa2 {[%emt 0:02:18]} Rxa2 {[%emt 0:00:06]} 28. Ra1 {[%emt 0:00:04]} Rxa1+ {[%emt 0:00:32]} 29. Nxa1 {[%emt 0:00:03]} Qg6 {[%emt 0:01:48]} 30. Nc2 {[%emt 0:01:58]} Bg7 {[%emt 0:09:28]} 31. Qf4+ {[%emt 0:06:58]} e5 {[%emt 0:01:06]} 32. dxe5 {[%emt 0:03:10]} Bh6 {[%emt 0:03:09]} 33. Ng5 {[%emt 0:01:55]} Bxg5 {[%emt 0:00:30]} 34. hxg5 {[%emt 0:00:20]} Qf5 {[%emt 0:00:42]} 35. Qxf5 {[%emt 0:03:45]} Bxf5 {[%emt 0:00:02]} 36. Nd4 {[%emt 0:00:34]} Nxd4 {[%emt 0:00:16]} 37. cxd4 {[%emt 0:00:02]} c3 0-1

[Event "ESP-ch U1700 2024"]
[Site "Albacete"]
[Date "2024.08.27"]
[Round "2.5"]
[White "Saiz Alonso de Armino, Daniel"]
[Black "Rovira Grimaldos, Jose Luis"]
[Result "1-0"]
[ECO "A40"]
[WhiteElo "1689"]
[BlackElo "1607"]
[Annotator "NA RC COMBH"]
[PlyCount "54"]
[EventDate "2024.08.27"]
[EventType "swiss"]
[EventCountry "ESP"]
[SourceTitle "playchess.com"]
[Source "ChessBase"]
[SourceQuality "1"]
[TimeControl "5400+30"]

1. d4 c6 {[%emt 0:03:16]} 2. Nf3 {[%emt 0:00:37]} d5 {[%emt 0:00:43]} 3. Bf4 {[%emt 0:00:18]} Bg4 {[%emt 0:00:36]} 4. e3 {[%emt 0:00:27]} Nd7 {[%emt 0:00:26]} 5. c4 {[%emt 0:00:38]} e6 {[%emt 0:01:25]} 6. Nc3 {[%emt 0:00:29]} Ngf6 {[%emt 0:00:07]} 7. Be2 {[%emt 0:00:25]} Bb4 {[%emt 0:01:12]} 8. h3 {[%emt 0:01:14]} Bh5 {[%emt 0:02:40]} 9. a3 {[%emt 0:01:49]} Bxc3+ {[%emt 0:01:16]} 10. bxc3 {[%emt 0:00:11]} Ne4 {[%emt 0:00:06]} 11. Qc2 {[%emt 0:01:10]} Bg6 {[%emt 0:01:44]} 12. Bd3 {[%emt 0:01:01]} Qa5 {[%emt 0:00:13]} 13. Rc1 {[%emt 0:05:10]} Qxa3 {[%emt 0:01:49]} 14. O-O {[%emt 0:01:08]} Nb6 {[%emt 0:03:57]} 15. Ne5 {[%emt 0:04:07]} f5 {[%emt 0:12:14]} 16. c5 {[%emt 0:01:50]} Nc4 {[%emt 0:10:49]} 17. Nxc4 {[%emt 0:00:39]} dxc4 {[%emt 0:00:04]} 18. Bxc4 {[%emt 0:01:33]} Qa5 {[%emt 0:05:20]} 19. Bxe6 {[%emt 0:00:59]} Ke7 {[%emt 0:04:20]} 20. Bb3 {[%emt 0:00:53]} Kd7 {[%emt 0:11:48]} 21. f3 {[%emt 0:01:17]} Nf6 {[%emt 0:00:09]} 22. Rfd1 {[%emt 0:00:28]} Nd5 {[%emt 0:00:49]} 23. Bxd5 {[%emt 0:01:39]} cxd5 {[%emt 0:00:03]} 24. Qb3 {[%emt 0:00:20]} Kc6 {[%emt 0:03:39]} 25. Ra1 {[%emt 0:01:24]} Qb5 {[%emt 0:02:26]} 26. Qc2 {[%emt 0:02:25]} Rhe8 {[%emt 0:01:51]} 27. Rdb1 {[%emt 0:01:41]} Qa5 1-0

[Event "ESP-ch U1700 2024"]
[Site "Albacete"]
[Date "2024.08.27"]
[Round "2.6"]
[White "Valiente Zabalza, Daniel"]
[Black "Caballero Sanchez, Francisco"]
[Result "1/2-1/2"]
[ECO "D05"]
[WhiteElo "1616"]
[BlackElo "1682"]
[Annotator "NA RC COMBH"]
[PlyCount "176"]
[EventDate "2024.08.27"]
[EventType "swiss"]
[EventCountry "ESP"]
[SourceTitle "playchess.com"]
[Source "ChessBase"]
[SourceQuality "1"]
[TimeControl "5400+30"]

1. d4 {[%emt 0:00:04]} Nf6 {[%emt 0:00:03]} 2. Nf3 {[%emt 0:00:28]} d5 {[%emt 0:00:07]} 3. e3 {[%emt 0:00:43]} e6 {[%emt 0:00:12]} 4. Be2 {[%emt 0:00:14]} Bd6 {[%emt 0:00:48]} 5. O-O {[%emt 0:01:08]} O-O {[%emt 0:00:50]} 6. b3 {[%emt 0:00:21]} Nbd7 {[%emt 0:00:19]} 7. Bb2 {[%emt 0:00:16]} b6 {[%emt 0:01:55]} 8. Nbd2 {[%emt 0:00:26]} Bb7 {[%emt 0:00:38]} 9. c4 {[%emt 0:00:38]} c5 {[%emt 0:01:16]} 10. Rc1 {[%emt 0:01:09]} Rc8 {[%emt 0:01:42]} 11. Re1 {[%emt 0:08:04]} Re8 {[%emt 0:01:19]} 12. Bd3 {[%emt 0:00:12]} e5 {[%emt 0:01:59]} 13. dxe5 {[%emt 0:02:10]} Nxe5 {[%emt 0:00:50]} 14. Nxe5 {[%emt 0:00:52]} Bxe5 {[%emt 0:00:17]} 15. Bxe5 {[%emt 0:00:41]} Rxe5 {[%emt 0:00:15]} 16. Nf3 {[%emt 0:04:48]} Re8 {[%emt 0:00:24]} 17. Rc2 {[%emt 0:05:07]} Qd7 18. Rd2 {[%emt 0:01:56]} Qc6 {[%emt 0:13:43]} 19. cxd5 {[%emt 0:02:02]} Nxd5 {[%emt 0:00:25]} 20. Bf5 {[%emt 0:10:03]} Rc7 {[%emt 0:03:45]} 21. e4 {[%emt 0:00:25]} Nf6 {[%emt 0:00:30]} 22. Rd6 {[%emt 0:00:24]} Qb5 {[%emt 0:00:39]} 23. e5 {[%emt 0:00:58]} Bxf3 {[%emt 0:00:54]} 24. gxf3 {[%emt 0:01:01]} Nh5 {[%emt 0:00:23]} 25. Bd7 {[%emt 0:00:15]} Rxd7 {[%emt 0:00:51]} 26. Rxd7 {[%emt 0:00:10]} Nf4 {[%emt 0:02:55]} 27. Kh1 {[%emt 0:02:32]} Nh3 {[%emt 0:01:50]} 28. Rf1 {[%emt 0:02:24]} h6 {[%emt 0:02:22]} 29. Rd8 {[%emt 0:01:37]} Rxd8 {[%emt 0:01:36]} 30. Qxd8+ {[%emt 0:00:05]} Kh7 {[%emt 0:00:08]} 31. Qd1 {[%emt 0:00:07]} Qb4 {[%emt 0:01:53]} 32. Qc2+ {[%emt 0:02:05]} Kg8 33. Qf5 {[%emt 0:03:42]} Qh4 {[%emt 0:05:29]} 34. Qc8+ {[%emt 0:00:29]} Kh7 {[%emt 0:00:19]} 35. Qf5+ {[%emt 0:00:06]} Kg8 {[%emt 0:00:16]} 36. Qc8+ {[%emt 0:00:35]} Kh7 37. Qf5+ Kg8 {[%emt 0:01:20]} 38. Qc2 {[%emt 0:00:50]} Qh5 39. Qe4 {[%emt 0:01:43]} Ng5 {[%emt 0:04:05]} 40. Qg4 {[%emt 0:01:33]} Qxg4 {[%emt 0:01:07]} 41. fxg4 {[%emt 0:00:06]} Nf3 {[%emt 0:00:12]} 42. Kg2 {[%emt 0:00:17]} Nxe5 {[%emt 0:00:03]} 43. h3 {[%emt 0:00:21]} Kf8 {[%emt 0:00:48]} 44. f4 {[%emt 0:00:13]} Nc6 {[%emt 0:00:14]} 45. Kf3 {[%emt 0:00:50]} Ke7 {[%emt 0:00:16]} 46. Ke4 {[%emt 0:00:22]} Ke6 {[%emt 0:02:36]} 47. h4 {[%emt 0:00:32]} Nd4 {[%emt 0:00:52]} 48. g5 {[%emt 0:00:22]} h5 {[%emt 0:00:26]} 49. f5+ {[%emt 0:00:33]} Kd6 {[%emt 0:01:29]} 50. g6 {[%emt 0:01:11]} f6 {[%emt 0:00:24]} 51. Rd1 {[%emt 0:00:27]} Kc6 {[%emt 0:00:27]} 52. Re1 {[%emt 0:01:15]} a5 {[%emt 0:01:02]} 53. Kd3 {[%emt 0:00:17]} Nxf5 {[%emt 0:02:19]} 54. Rh1 {[%emt 0:00:11]} Kd5 {[%emt 0:02:27]} 55. a4 {[%emt 0:03:23]} Nd4 {[%emt 0:01:14]} 56. Kc3 {[%emt 0:00:47]} Ke5 {[%emt 0:01:27]} 57. Rf1 {[%emt 0:01:05]} f5 {[%emt 0:00:33]} 58. Kd3 {[%emt 0:00:33]} f4 {[%emt 0:01:16]} 59. Re1+ {[%emt 0:01:26]} Kf5 {[%emt 0:01:51]} 60. Rf1 {[%emt 0:02:24]} f3 {[%emt 0:00:45]} 61. Ke3 {[%emt 0:00:57]} Kxg6 {[%emt 0:00:35]} 62. Kf4 {[%emt 0:00:49]} Kf6 {[%emt 0:03:03]} 63. Rd1 {[%emt 0:00:47]} g6 64. Ke3 {[%emt 0:07:56]} Ke5 {[%emt 0:03:51]} 65. Rg1 {[%emt 0:00:47]} Kf5 {[%emt 0:01:19]} 66. Rg5+ {[%emt 0:00:29]} Kf6 {[%emt 0:01:09]} 67. Rd5 {[%emt 0:01:15]} Nf5+ {[%emt 0:00:58]} 68. Kxf3 {[%emt 0:00:16]} Nxh4+ {[%emt 0:00:11]} 69. Kg3 {[%emt 0:00:51]} Nf5+ {[%emt 0:00:04]} 70. Kf4 g5+ {[%emt 0:02:27]} 71. Ke4 {[%emt 0:01:20]} Nd4 {[%emt 0:02:05]} 72. Rd6+ {[%emt 0:00:26]} Kg7 {[%emt 0:01:10]} 73. Rxb6 {[%emt 0:00:22]} h4 {[%emt 0:00:10]} 74. Ke3 {[%emt 0:03:25]} g4 {[%emt 0:02:31]} 75. Rb5 {[%emt 0:02:22]} g3 {[%emt 0:01:23]} 76. Rxc5 {[%emt 0:00:31]} h3 {[%emt 0:03:47]} 77. Rg5+ {[%emt 0:00:29]} Kf6 {[%emt 0:00:03]} 78. Rxg3 {[%emt 0:11:36]} Nf5+ {[%emt 0:00:07]} 79. Kf3 {[%emt 0:00:16]} Nxg3 {[%emt 0:00:09]} 80. Kxg3 {[%emt 0:00:17]} Ke5 {[%emt 0:00:08]} 81. Kxh3 {[%emt 0:00:58]} Kd4 {[%emt 0:00:16]} 82. Kg3 {[%emt 0:00:26]} Kc3 {[%emt 0:00:10]} 83. Kf3 {[%emt 0:00:16]} Kxb3 {[%emt 0:00:14]} 84. Ke2 {[%emt 0:00:12]} Kxa4 {[%emt 0:00:16]} 85. Kd1 {[%emt 0:00:07]} Kb3 {[%emt 0:01:30]} 86. Kc1 {[%emt 0:00:45]} Ka2 {[%emt 0:00:16]} 87. Kc2 {[%emt 0:00:14]} a4 {[%emt 0:00:08]} 88. Kc1 {[%emt 0:00:19]} a3 {[%emt 0:00:08]} 1/2-1/2

[Event "ESP-ch U1700 2024"]
[Site "Albacete"]
[Date "2024.08.27"]
[Round "2.7"]
[White "Lopez Milian, Adela"]
[Black "Cerda Guilabert, Carla"]
[Result "1-0"]
[ECO "D37"]
[WhiteElo "1681"]
[BlackElo "1604"]
[Annotator "NA RC COMBH"]
[PlyCount "91"]
[EventDate "2024.08.27"]
[EventType "swiss"]
[EventCountry "ESP"]
[SourceTitle "playchess.com"]
[Source "ChessBase"]
[SourceQuality "1"]
[TimeControl "5400+30"]

1. d4 {[%emt 0:00:02]} d5 {[%emt 0:00:08]} 2. c4 {[%emt 0:00:05]} e6 {[%emt 0:00:04]} 3. Nc3 {[%emt 0:00:05]} Nf6 {[%emt 0:00:08]} 4. Nf3 {[%emt 0:00:15]} Be7 {[%emt 0:00:39]} 5. Bf4 {[%emt 0:01:24]} a6 {[%emt 0:00:44]} 6. c5 {[%emt 0:01:33]} Nc6 {[%emt 0:07:21]} 7. a3 {[%emt 0:01:27]} Nd7 {[%emt 0:11:40]} 8. b4 {[%emt 0:04:18]} f6 {[%emt 0:06:23]} 9. Bg3 {[%emt 0:01:18]} Na7 {[%emt 0:06:48]} 10. e4 {[%emt 0:09:15]} dxe4 {[%emt 0:08:34]} 11. Nxe4 {[%emt 0:00:20]} O-O {[%emt 0:04:48]} 12. Bc4 {[%emt 0:02:05]} Kh8 {[%emt 0:02:29]} 13. Bxe6 {[%emt 0:18:21]} f5 {[%emt 0:05:39]} 14. Bxd7 {[%emt 0:00:33]} Bxd7 {[%emt 0:05:11]} 15. Nc3 {[%emt 0:06:02]} f4 {[%emt 0:02:23]} 16. Ne5 {[%emt 0:01:05]} fxg3 {[%emt 0:01:16]} 17. hxg3 {[%emt 0:00:12]} Be8 {[%emt 0:10:13]} 18. Qd3 {[%emt 0:04:32]} h6 {[%emt 0:04:44]} 19. Ng4 {[%emt 0:06:08]} Bf6 {[%emt 0:04:24]} 20. Nxh6 {[%emt 0:00:40]} Qe7+ {[%emt 0:00:35]} 21. Kd1 {[%emt 0:01:31]} gxh6 {[%emt 0:01:03]} 22. Rxh6+ {[%emt 0:00:05]} Kg8 {[%emt 0:00:26]} 23. f4 {[%emt 0:11:25]} Rd8 {[%emt 0:01:51]} 24. Kc2 {[%emt 0:05:09]} Bxd4 {[%emt 0:04:55]} 25. Rah1 {[%emt 0:00:26]} Bxc3 {[%emt 0:01:52]} 26. Qc4+ {[%emt 0:03:00]} Rf7 {[%emt 0:01:49]} 27. Qxc3 {[%emt 0:01:04]} Qe2+ {[%emt 0:04:10]} 28. Kc1 {[%emt 0:00:27]} Qd2+ {[%emt 0:03:06]} 29. Qxd2 {[%emt 0:00:09]} Rxd2 {[%emt 0:00:10]} 30. Kxd2 {[%emt 0:00:02]} Rg7 {[%emt 0:00:21]} 31. Ke1 {[%emt 0:01:27]} Bc6 {[%emt 0:00:27]} 32. Kf2 {[%emt 0:00:24]} Kf7 {[%emt 0:00:31]} 33. Rh7 {[%emt 0:00:33]} Be4 {[%emt 0:00:29]} 34. Rxg7+ {[%emt 0:00:19]} Kxg7 {[%emt 0:00:03]} 35. Re1 {[%emt 0:00:15]} Bc6 {[%emt 0:00:25]} 36. g4 {[%emt 0:00:46]} Nb5 {[%emt 0:00:34]} 37. Re3 {[%emt 0:00:12]} Kf6 {[%emt 0:00:31]} 38. g3 {[%emt 0:01:18]} Nd4 {[%emt 0:01:16]} 39. Rd3 {[%emt 0:03:16]} Ne6 {[%emt 0:00:41]} 40. Ke3 {[%emt 0:00:51]} Bb5 {[%emt 0:00:39]} 41. Rd1 {[%emt 0:00:29]} Ba4 {[%emt 0:00:28]} 42. Rh1 {[%emt 0:00:15]} Kf7 {[%emt 0:00:46]} 43. Rh5 {[%emt 0:00:56]} Ng7 {[%emt 0:00:27]} 44. Re5 {[%emt 0:00:41]} Ne6 {[%emt 0:00:41]} 45. g5 {[%emt 0:04:23]} Kg6 {[%emt 0:00:31]} 46. Ke4 1-0